bitfinex-derivatives/quotes_SOLF0:USTF0_20250907
["timestamp","ask_amount","ask_price","bid_price","bid_amount"]
[1757276991454,7.91,203.06,203.05,1.95745879]
[1757276992159,13.45064862,203.06,203.05,1.95745879]
[1757276997571,5.54064862,203.06,203.05,7.51745879]
[1757276997763,5.53486886,203.08,203.06,5.56]
[1757276997967,5.53486886,203.08,203.07,1.95745879]
[1757276998469,8.27976318,203.12,203.07,1.95745879]
[1757276998771,7.91,203.11,203.09,1.95745879]
[1757276998971,8.27976318,203.12,203.09,1.95745879]
[1757276999770,7.91,203.11,203.09,1.95745879]
[1757277000071,8.27976318,203.12,203.09,1.95745879]
[1757277000268,7.91,203.11,203.09,0.15309226]
[1757277000473,8.27976318,203.12,203.09,0.15309226]
[1757277000672,7.91,203.11,203.09,0.15309226]
[1757277001373,8.27976318,203.12,203.09,0.15309226]
[1757277001668,7.91,203.12,203.11,1.95745879]
[1757277001870,7.91,203.12,203.11,7.51745879]
[1757277003074,7.91,203.14,203.11,7.51745879]
[1757277003273,7.91,203.14,203.13,1.95745879]
[1757277013279,7.91,203.14,203.08,5.57]
[1757277013481,7.62,203.17,203.12,1.95745879]
[1757277014781,7.62,203.17,203.08,5.57]
[1757277015086,7.62,203.17,203.12,1.95745879]
[1757277025290,1.95745879,203.18,203.12,7.52745879]
[1757277025791,7.62,203.17,203.12,7.52745879]
[1757277025995,1.95745879,203.18,203.12,7.52745879]
[1757277026300,7.62,203.17,203.12,7.52745879]
[1757277026594,8.27976318,203.19,203.12,7.52745879]
[1757277026790,8.27976318,203.19,203.14,1.95745879]
[1757277026991,7.62,203.18,203.14,1.95745879]
[1757277027797,7.62,203.15,203.14,1.95745879]
[1757277029001,5.51316258,203.17,203.12,7.52745879]
[1757277029298,7.62,203.16,203.12,1.95745879]
[1757277029497,13.13316258,203.16,203.09,5.57]
[1757277029698,1.95745879,203.18,203.09,5.57]
[1757277029699,5.51316258,203.15,203.11,1.95745879]
[1757277030394,5.51316258,203.15,203.11,7.52745879]
[1757277032300,7.62,203.13,203.11,7.52745879]
[1757277036208,13.13316258,203.13,203.11,7.52745879]
[1757277036705,7.45,203.12,203.11,1.95745879]
[1757277046515,12.96316258,203.12,203.11,1.95745879]
[1757277048315,12.96316258,203.12,203.09,3.05526782]
[1757277048512,12.96316258,203.12,203.1,5.54]
[1757277052213,12.96316258,203.12,203.09,3.05526782]
[1757277052517,5.51316258,203.12,203.1,5.54]
[1757277053110,5.51316258,203.12,203.09,3.05526782]
[1757277053514,5.51316258,203.12,203.1,5.54]
[1757277053809,5.51316258,203.12,203.09,3.05526782]
[1757277054010,5.51316258,203.12,203.1,5.54]
[1757277055021,5.51316258,203.12,203.09,3.05526782]
[1757277055222,5.51316258,203.12,203.1,5.54]
[1757277056421,12.96316258,203.12,203.1,5.54]
[1757277060416,12.96316258,203.12,203.09,3.05526782]
[1757277060623,12.96316258,203.13,203.1,5.54]
[1757277061023,12.96316258,203.13,203.09,3.05526782]
[1757277061217,5.51316258,203.13,203.09,3.05526782]
[1757277061422,5.51316258,203.13,203.12,8.59526782]
[1757277061624,12.96316258,203.15,203.13,5.54]
[1757277062317,7.45,203.15,203.13,5.54]
[1757277062920,7.45,203.15,203.12,8.59526782]
[1757277063121,7.45,203.15,203.13,5.54]
[1757277065127,7.45,203.15,203.13,5.45744721]
[1757277069229,7.45,203.15,203.13,5.47]
[1757277071628,7.46,203.16,203.13,5.47]
[1757277071831,5.51316258,203.17,203.13,5.47]
[1757277072228,7.46,203.16,203.13,5.47]
[1757277072428,5.51316258,203.17,203.13,5.47]
[1757277073129,7.46,203.16,203.12,3.05526782]
[1757277073732,7.46,203.16,203.12,8.52526782]
[1757277073930,5.51316258,203.17,203.12,8.52526782]
[1757277074131,7.46,203.16,203.12,8.52526782]
[1757277074327,5.51316258,203.17,203.12,8.52526782]
[1757277074630,7.46,203.16,203.12,3.05526782]
[1757277074829,7.46,203.16,203.13,5.47]
[1757277075731,5.51316258,203.17,203.13,5.47]
[1757277075933,7.46,203.16,203.13,5.47]
[1757277076134,5.51316258,203.17,203.13,5.47]
[1757277076333,7.46,203.16,203.13,5.47]
[1757277076932,5.51316258,203.17,203.13,5.47]
[1757277077532,7.46,203.16,203.13,5.47]
[1757277078229,5.51316258,203.17,203.13,5.47]
[1757277078424,7.46,203.16,203.13,5.47]
[1757277078932,5.51316258,203.17,203.13,5.47]
[1757277079233,7.46,203.16,203.13,5.47]
[1757277079433,5.51316258,203.17,203.13,5.47]
[1757277079628,5.51316258,203.16,203.13,5.47]
[1757277079834,7.46,203.15,203.13,5.47]
[1757277083739,7.46,203.15,203.09,5.47]
[1757277083938,12.97316258,203.15,203.09,8.52526782]
[1757277089646,7.46,203.15,203.09,8.52526782]
[1757277090943,12.97316258,203.15,203.09,8.52526782]
[1757277103053,5.51316258,203.14,203.09,8.52526782]
[1757277103255,8.21,203.13,203.1,5.47]
[1757277103453,8.21,203.13,203.09,3.05526782]
[1757277103656,8.21,203.13,203.1,5.47]
[1757277103960,8.21,203.13,203.09,3.05526782]
[1757277104258,8.21,203.13,203.1,5.47]
[1757277108662,8.21,203.13,203.08,3.05526782]
[1757277108863,5.51316258,203.12,203.05,73.58]
[1757277109468,8.21,203.11,203.05,73.58]
[1757277109671,8.21,203.11,203.03,100.48337253]
[1757277109965,8.21,203.09,203.03,100.48337253]
[1757277110163,8.21,203.09,203.03,105.95337253]
[1757277110363,8.21,203.1,203.06,1.95656267]
[1757277111068,13.72316258,203.1,203.06,1.95656267]
[1757277111267,8.21,203.1,203.06,1.95656267]
[1757277115172,5.51316258,203.11,203.04,1.95656267]
[1757277115372,8.21,203.1,203.04,1.95656267]
[1757277126482,7.74,203.1,203.04,120.93656267]
[1757277126682,7.46972525,203.11,203.04,120.93656267]
[1757277127282,7.74,203.1,203.04,120.93656267]
[1757277128084,7.46972525,203.11,203.04,120.93656267]
[1757277128284,7.74,203.1,203.04,120.93656267]
[1757277128484,7.74,203.1,203.04,1.95656267]
[1757277128685,7.74,203.1,203.04,120.93656267]
[1757277132982,7.74,203.1,203.06,1.95656267]
[1757277133182,7.74,203.14,203.09,5.47]
[1757277133387,5.51316258,203.16,203.11,7.42656267]
[1757277134088,7.74,203.15,203.11,7.42656267]
[1757277134383,5.51316258,203.16,203.11,7.42656267]
[1757277134887,1.95656267,203.17,203.11,1.95656267]
[1757277134888,5.51316258,203.15,203.11,1.95656267]
[1757277135088,7.74,203.14,203.11,1.95656267]
[1757277135382,5.51316258,203.15,203.11,1.95656267]
[1757277135587,7.74,203.14,203.11,1.95656267]
[1757277135782,5.51316258,203.15,203.11,1.95656267]
[1757277137391,7.74,203.14,203.11,1.95656267]
[1757277137589,7.74,203.14,203.11,7.42656267]
[1757277138586,5.51316258,203.15,203.11,7.42656267]
[1757277139092,7.74,203.14,203.11,7.42656267]
[1757277139292,5.51316258,203.15,203.11,7.42656267]
[1757277139589,7.74,203.14,203.11,7.42656267]
[1757277139790,5.51316258,203.15,203.11,7.42656267]
[1757277139988,7.74,203.14,203.11,7.42656267]
[1757277140189,5.51316258,203.15,203.11,7.42656267]
[1757277140389,7.74,203.14,203.11,7.42656267]
[1757277140590,5.51316258,203.15,203.11,7.42656267]
[1757277141289,5.51316258,203.14,203.11,7.42656267]
[1757277141493,7.74,203.13,203.11,7.42656267]
[1757277144599,7.74,203.13,203.09,1.95656267]
[1757277144785,5.51316258,203.14,203.09,7.42656267]
[1757277144985,7.74,203.13,203.09,7.42656267]
[1757277145184,7.74,203.13,203.1,5.47]
[1757277145895,13.25316258,203.12,203.1,5.47]
[1757277146097,5.51316258,203.13,203.09,1.95656267]
[1757277146288,7.74,203.12,203.09,1.95656267]
[1757277146493,13.25316258,203.12,203.09,1.95656267]
[1757277146796,5.51316258,203.12,203.09,1.95656267]
[1757277146991,5.51316258,203.12,203.06,5.47]
[1757277146992,7.74,203.11,203.06,5.47]
[1757277147192,7.74,203.09,203.06,5.47]
[1757277149897,5.51316258,203.1,203.06,5.47]
[1757277150096,7.74,203.09,203.06,5.47]
[1757277154903,5.51316258,203.1,203.06,5.47]
[1757277155203,7.92,203.09,203.06,5.47]
[1757277155398,5.51316258,203.1,203.06,5.47]
[1757277155602,7.92,203.09,203.06,5.47]
[1757277158702,13.43316258,203.1,203.05,1.95656267]
[1757277159302,13.43316258,203.1,203.06,5.47]
[1757277159503,13.43316258,203.1,203.07,1.95656267]
[1757277159805,7.92,203.1,203.08,5.47]
[1757277160206,7.92,203.1,203.07,7.42656267]
[1757277160403,5.51316258,203.11,203.07,7.42656267]
[1757277160607,7.92,203.1,203.07,7.42656267]
[1757277160905,5.51316258,203.11,203.07,7.42656267]
[1757277161297,7.92,203.1,203.07,7.42656267]
[1757277162609,5.51316258,203.11,203.07,7.42656267]
[1757277163407,7.92,203.1,203.07,7.42656267]
[1757277163806,5.51316258,203.11,203.07,7.42656267]
[1757277164408,7.92,203.1,203.07,7.42656267]
[1757277164608,5.51316258,203.11,203.07,7.42656267]
[1757277165314,7.92,203.1,203.07,7.42656267]
[1757277166114,5.51316258,203.11,203.07,7.42656267]
[1757277166613,7.92,203.1,203.07,7.42656267]
[1757277167509,5.51316258,203.11,203.07,7.42656267]
[1757277167713,7.92,203.1,203.07,7.42656267]
[1757277168115,5.51316258,203.11,203.07,7.42656267]
[1757277169205,7.92,203.1,203.07,7.42656267]
[1757277169614,5.51316258,203.11,203.07,7.42656267]
[1757277169915,13.43316258,203.09,203.07,7.42656267]
[1757277170304,7.92,203.09,203.07,7.42656267]
[1757277172316,7.92,203.09,203.07,5.47]
[1757277179130,13.43316258,203.09,203.07,5.47]
[1757277179730,7.92,203.09,203.07,5.47]
[1757277187840,5.51316258,203.1,203.07,5.47]
[1757277188041,7.78,203.09,203.07,5.47]
[1757277188641,7.78,203.09,203.08,4.28989516]
[1757277190142,13.29316258,203.09,203.08,4.28989516]
[1757277198945,5.51316258,203.09,203.08,9.75989516]
[1757277199145,13.29316258,203.12,203.08,4.28989516]
[1757277199451,13.29316258,203.12,203.1,5.47]
[1757277199649,13.29316258,203.12,203.11,4.28989516]
[1757277200343,13.29316258,203.12,203.1,5.47]
[1757277201450,7.78,203.12,203.1,5.47]
[1757277201943,5.51316258,203.13,203.07,5.47]
[1757277202143,5.51316258,203.13,203.08,4.28513734]
[1757277202345,13.29316258,203.13,203.1,5.47]
[1757277203552,7.78,203.12,203.1,5.47]
[1757277205854,5.51316258,203.14,203.1,5.47]
[1757277206053,7.78,203.13,203.07,5.47]
[1757277206353,7.78,203.13,203.08,9.75267709]
[1757277206553,5.51316258,203.14,203.09,9.75267709]
[1757277206852,5.51316258,203.14,203.09,5.47]
[1757277207046,7.78,203.13,203.09,5.47]
[1757277207247,5.51316258,203.14,203.09,5.47]
[1757277207445,7.78,203.13,203.09,5.47]
[1757277208148,5.51316258,203.14,203.09,5.47]
[1757277208849,7.78,203.13,203.09,5.47]
[1757277209152,5.51316258,203.14,203.09,5.47]
[1757277209353,7.78,203.13,203.09,5.47]
[1757277209556,5.51316258,203.14,203.09,5.47]
[1757277209749,7.78,203.12,203.09,5.47]
[1757277210454,7.78,203.12,203.1,4.28124027]
[1757277210662,7.78,203.12,203.09,5.47]
[1757277210850,7.78,203.12,203.1,4.28124027]
[1757277211051,7.78,203.12,203.09,5.47]
[1757277211553,7.78,203.12,203.08,3.05693935]
[1757277211753,7.78,203.12,203.1,5.47]
[1757277212052,5.51316258,203.13,203.1,5.47]
[1757277212247,5.51316258,203.13,203.09,5.47]
[1757277212447,7.78,203.12,203.09,5.47]
[1757277212654,5.51316258,203.13,203.09,5.47]
[1757277213054,7.78,203.12,203.09,5.47]
[1757277213246,5.51316258,203.13,203.09,5.47]
[1757277213452,7.78,203.12,203.09,5.47]
[1757277213654,5.51316258,203.13,203.09,5.47]
[1757277213851,7.78,203.13,203.1,4.27991569]
[1757277214155,7.78,203.13,203.09,5.47]
[1757277214354,5.51316258,203.14,203.1,4.27956184]
[1757277214555,5.51316258,203.14,203.09,5.47]
[1757277214855,5.51316258,203.14,203.1,4.27953163]
[1757277215054,5.51316258,203.14,203.09,5.47]
[1757277215256,5.51316258,203.14,203.1,4.27921277]
[1757277215553,7.56,203.13,203.09,5.47]
[1757277216155,5.51316258,203.14,203.09,5.47]
[1757277217753,7.56,203.13,203.09,5.47]
[1757277218059,5.51316258,203.14,203.09,5.47]
[1757277218252,7.56,203.13,203.09,5.47]
[1757277218859,5.51316258,203.14,203.09,5.47]
[1757277219859,7.56,203.13,203.09,5.47]
[1757277220158,5.51316258,203.14,203.09,5.47]
[1757277220858,7.56,203.13,203.08,3.05693935]
[1757277221359,5.51316258,203.14,203.08,3.05693935]
[1757277221558,7.56,203.13,203.08,3.05693935]
[1757277221860,5.51316258,203.14,203.08,3.05693935]
[1757277222254,7.56,203.13,203.08,8.51693935]
[1757277222558,5.51316258,203.14,203.08,3.05693935]
[1757277222755,7.56,203.13,203.08,8.51693935]
[1757277223462,5.51316258,203.14,203.08,3.05693935]
[1757277224058,7.56,203.13,203.08,8.51693935]
[1757277224256,5.51316258,203.14,203.08,3.05693935]
[1757277225162,7.56,203.13,203.08,8.51693935]
[1757277225363,5.51316258,203.14,203.08,3.05693935]
[1757277225562,7.56,203.13,203.08,8.51693935]
[1757277226062,5.51316258,203.14,203.08,3.05693935]
[1757277226263,7.56,203.13,203.08,8.51693935]
[1757277226462,5.51316258,203.14,203.08,3.05693935]
[1757277227061,7.56,203.13,203.08,8.51693935]
[1757277227361,5.51316258,203.14,203.08,3.05693935]
[1757277227762,5.51316258,203.14,203.08,8.51693935]
[1757277227955,5.51316258,203.14,203.08,3.05693935]
[1757277228356,7.56,203.13,203.08,8.51693935]
[1757277228561,5.51316258,203.14,203.08,3.05693935]
[1757277228761,7.56,203.13,203.08,8.51693935]
[1757277229159,5.51316258,203.14,203.08,3.05693935]
[1757277229570,7.56,203.13,203.08,8.51693935]
[1757277230168,5.51316258,203.14,203.08,3.05693935]
[1757277230369,7.56,203.13,203.08,8.51693935]
[1757277230570,5.51316258,203.14,203.08,3.05693935]
[1757277230763,7.56,203.13,203.08,8.51693935]
[1757277230963,5.51316258,203.14,203.08,3.05693935]
[1757277231965,7.56,203.13,203.08,5.46]
[1757277232164,7.56,203.13,203.07,8.51693935]
[1757277232364,7.56,203.13,203.1,1.95577721]
[1757277232566,13.07316258,203.13,203.06,1.95577721]
[1757277232762,7.56,203.1,203.04,7.41577721]
[1757277232962,13.07316258,203.1,203.06,1.95577721]
[1757277233267,7.56,203.09,203.08,1.95577721]
[1757277242569,5.51316258,203.11,203.06,7.41577721]
[1757277243369,7.56,203.1,203.06,7.41577721]
[1757277243570,5.51316258,203.11,203.06,7.41577721]
[1757277243873,7.56,203.1,203.06,7.41577721]
[1757277244171,5.51316258,203.11,203.06,7.41577721]
[1757277245282,7.78,203.1,203.06,7.41577721]
[1757277245975,5.51316258,203.11,203.06,7.41577721]
[1757277246174,7.78,203.1,203.06,7.41577721]
[1757277246474,7.78,203.09,203.06,7.41577721]
[1757277249174,5.51316258,203.11,203.06,7.41577721]
[1757277249370,7.78,203.1,203.06,7.41577721]
[1757277249577,5.51316258,203.11,203.06,7.41577721]
[1757277249873,7.78,203.09,203.06,7.41577721]
[1757277256276,7.78,203.09,203.06,5.46]
[1757277256477,7.78,203.09,203.07,1.95577721]
[1757277257278,5.51316258,203.11,203.07,1.95577721]
[1757277258177,7.78,203.1,203.07,1.95577721]
[1757277258378,5.51316258,203.11,203.07,1.95577721]
[1757277258579,7.78,203.1,203.07,1.95577721]
[1757277258777,5.51316258,203.11,203.07,1.95577721]
[1757277258976,13.29316258,203.14,203.09,1.95577721]
[1757277259180,13.29316258,203.14,203.01,109.98250313]
[1757277259181,7.78,203.14,203.12,7.42577721]
[1757277259581,5.51316258,203.16,203.12,1.95577721]
[1757277259781,5.51316258,203.15,203.12,1.95577721]
[1757277259984,7.78,203.14,203.12,1.95577721]
[1757277260783,5.51316258,203.15,203.12,1.95577721]
[1757277260984,7.78,203.14,203.12,1.95577721]
[1757277261782,5.51316258,203.15,203.12,1.95577721]
[1757277262184,7.78,203.14,203.12,1.95577721]
[1757277262383,5.51316258,203.15,203.12,1.95577721]
[1757277262882,7.78,203.14,203.12,7.42577721]
[1757277267882,5.51316258,203.15,203.12,7.42577721]
[1757277268585,7.78,203.14,203.12,7.42577721]
[1757277276791,5.51316258,203.16,203.12,1.95577721]
[1757277277094,7.45,203.15,203.12,1.95577721]
[1757277277596,5.51316258,203.16,203.12,1.95577721]
[1757277277798,7.45,203.15,203.12,1.95577721]
[1757277277995,5.51316258,203.16,203.12,1.95577721]
[1757277278895,7.45,203.15,203.12,1.95577721]
[1757277279090,5.51316258,203.16,203.12,1.95577721]
[1757277279295,7.45,203.15,203.12,1.95577721]
[1757277279495,5.51316258,203.16,203.12,1.95577721]
[1757277279692,7.45,203.15,203.12,1.95577721]
[1757277279896,5.51316258,203.16,203.12,1.95577721]
[1757277281299,7.45,203.15,203.12,1.95577721]
[1757277281501,5.51316258,203.16,203.12,1.95577721]
[1757277281697,7.45,203.15,203.12,1.95577721]
[1757277281897,5.51316258,203.16,203.12,1.95577721]
[1757277282198,7.45,203.18,203.15,5.47]
[1757277282398,7.45,203.18,203.16,1.95577721]
[1757277282601,7.45,203.18,203.16,7.42577721]
[1757277290101,5.51316258,203.21,203.16,7.42577721]
[1757277290507,7.45,203.2,203.16,7.42577721]
[1757277290708,5.51316258,203.21,203.16,7.42577721]
[1757277291097,7.45,203.2,203.16,1.95577721]
[1757277291805,5.51316258,203.21,203.16,1.95577721]
[1757277292307,7.45,203.2,203.14,8.52401246]
[1757277294204,5.51316258,203.22,203.18,5.47]
[1757277294409,7.45,203.23,203.18,5.47]
[1757277294613,7.45,203.23,203.17,8.52401246]
[1757277300214,12.96316258,203.23,203.17,8.52401246]
[1757277300614,5.51316258,203.22,203.11,5.47]
[1757277300811,7.45,203.18,203.11,5.47]
[1757277301012,12.96316258,203.18,203.11,5.47]
[1757277301212,5.51316258,203.17,203.08,119.0742778]
[1757277301413,5.51316258,203.14,203.03,3.05401246]
[1757277301619,11.33377564,203.17,203.04,9.88556582]
[1757277301620,7.45,203.12,203.04,9.88556582]
[1757277301917,8.27976318,203.16,203.1,5.47]
[1757277301918,5.51316258,203.15,203.1,5.47]
[1757277302113,5.51316258,203.18,203.12,3.05401246]
[1757277302324,5.51316258,203.19,203.13,5.47]
[1757277302617,7.45,203.19,203.16,5.47]
[1757277303814,7.45,203.19,203.15,3.05401246]
[1757277304008,7.45,203.2,203.15,3.05401246]
[1757277304317,7.45,203.2,203.16,5.47]
[1757277305118,7.41,203.2,203.16,5.47]
[1757277305318,5.51316258,203.21,203.16,5.47]
[1757277305517,7.41,203.2,203.16,5.47]
[1757277305709,7.41,203.2,203.15,3.05401246]
[1757277306512,7.41,203.2,203.16,5.48]
[1757277306718,7.41,203.2,203.15,3.05401246]
[1757277307320,5.51811341,203.21,203.16,5.48]
[1757277307521,12.92811341,203.21,203.15,8.53401246]
[1757277309723,7.41,203.21,203.15,8.53401246]
[1757277310315,8.27976318,203.26,203.2,3.05401246]
[1757277310515,7.41,203.34,203.26,5.48]
[1757277310717,7.41,203.4,203.29,3.05401246]
[1757277311417,7.41,203.4,203.3,4.63096125]
[1757277311619,7.41,203.4,203.32,3.05401246]
[1757277311825,7.41,203.4,203.33,4.63072938]
[1757277312024,7.41,203.4,203.32,3.05401246]
[1757277316229,7.41,203.4,203.28,3.05401246]
[1757277316724,7.41,203.34,203.22,8.53401246]
[1757277316929,3.05401246,203.38,203.22,3.05401246]
[1757277316930,3.05401246,203.32,203.22,3.05401246]
[1757277317128,7.41,203.31,203.22,3.05401246]
[1757277317437,7.41,203.31,203.18,3.05401246]
[1757277317731,7.41,203.31,203.21,3.05401246]
[1757277318431,7.41,203.31,203.24,3.05401246]
[1757277321228,7.41,203.31,203.22,5.48]
[1757277333939,7.41,203.31,203.25,5.46]
[1757277337137,7.54,203.36,203.25,5.46]
[1757277337535,7.54,203.36,203.28,5.46]
[1757277339038,7.54,203.36,203.3,3.05401246]
[1757277343144,7.54,203.36,203.31,5.46]
[1757277343648,7.54,203.42,203.31,5.46]
[1757277344645,7.54,203.42,203.3,3.05401246]
[1757277345948,7.54,203.42,203.28,5.46]
[1757277345949,7.54,203.42,203.28,8.51401246]
[1757277346142,3.05401246,203.4,203.25,3.05401246]
[1757277346346,7.54,203.36,203.26,4.37043992]
[1757277346647,7.54,203.33,203.22,8.51401246]
[1757277347548,7.54,203.29,203.22,8.51401246]
[1757277349451,7.54,203.29,203.23,4.3795072]
[1757277349646,7.54,203.29,203.22,8.51401246]
[1757277349845,7.54,203.29,203.23,4.3794969]
[1757277350045,7.54,203.29,203.22,8.51401246]
[1757277350246,7.54,203.29,203.23,4.3795072]
[1757277350456,7.54,203.29,203.24,4.38107041]
[1757277350649,7.54,203.29,203.22,8.51401246]
[1757277350852,7.54,203.29,203.23,4.38108071]
[1757277351153,7.54,203.29,203.22,8.51401246]
[1757277351154,0.03562232,203.3,203.24,4.38108071]
[1757277351349,7.54,203.29,203.22,8.51401246]
[1757277351652,7.54,203.29,203.23,4.38279628]
[1757277351852,0.03562232,203.3,203.24,4.38279628]
[1757277352054,7.54,203.29,203.22,8.51401246]
[1757277352256,7.54,203.29,203.23,4.38279567]
[1757277352455,0.03562232,203.3,203.25,1.95287965]
[1757277352757,7.54,203.29,203.25,1.95287965]
[1757277353055,0.03562232,203.3,203.25,1.95287965]
[1757277353554,7.54,203.29,203.25,1.95287965]
[1757277353750,0.03562232,203.3,203.25,1.95287965]
[1757277354152,7.54,203.29,203.25,1.95287965]
[1757277354657,7.54,203.29,203.22,7.41287965]
[1757277354951,0.03562232,203.3,203.2,1.95287965]
[1757277355153,7.54,203.26,203.21,4.39090718]
[1757277355351,7.54,203.26,203.2,1.95287965]
[1757277355555,7.54,203.26,203.21,4.39273631]
[1757277355756,7.54,203.26,203.2,1.95287965]
[1757277355957,7.54,203.26,203.21,4.39273802]
[1757277356255,7.54,203.26,203.2,1.95287965]
[1757277357158,7.54,203.24,203.18,1.95287965]
[1757277357360,7.54,203.24,203.19,4.39333763]
[1757277357559,7.54,203.24,203.18,1.95287965]
[1757277357760,7.54,203.24,203.19,4.39282145]
[1757277357959,7.54,203.24,203.18,1.95287965]
[1757277358259,7.54,203.24,203.19,4.39282145]
[1757277358460,7.54,203.24,203.18,1.95287965]
[1757277360557,7.54,203.2,203.14,1.95287965]
[1757277362265,1.95287965,203.21,203.16,1.95287965]
[1757277363467,7.54,203.2,203.16,1.95287965]
[1757277363972,7.54,203.2,203.15,1.95287965]
[1757277364176,1.95287965,203.21,203.15,1.95287965]
[1757277364471,7.54,203.2,203.15,1.95287965]
[1757277364672,1.95287965,203.21,203.17,1.95287965]
[1757277364673,7.54,203.21,203.17,1.95287965]
[1757277365072,7.54,203.21,203.18,5.46]
[1757277365582,1.95287965,203.24,203.18,5.46]
[1757277368471,7.72,203.25,203.18,5.46]
[1757277368674,9.67287965,203.25,203.18,5.46]
[1757277368973,9.67287965,203.25,203.11,330.92]
[1757277368974,7.72,203.22,203.16,1.95287965]
[1757277375074,7.72,203.2,203.11,336.38]
[1757277375280,7.72,203.2,203.13,1.95287965]
[1757277379079,7.72,203.22,203.11,5.46]
[1757277379281,7.72,203.22,203.14,1.95287965]
[1757277380388,1.95287965,203.21,203.14,1.95287965]
[1757277380586,7.72,203.2,203.14,1.95287965]
[1757277381990,7.72,203.18,203.09,120.44]
[1757277382188,7.72,203.18,203.1,1.95287965]
[1757277384887,7.72,203.16,203.1,1.95287965]
[1757277389889,1.95287965,203.15,203.09,120.44]
[1757277390294,7.72,203.14,203.09,120.44]
[1757277390789,7.72,203.14,203.08,1.95287965]
[1757277394298,1.95287965,203.13,203.07,5.46]
[1757277394493,7.72,203.12,203.07,5.46]
[1757277394697,1.95287965,203.13,203.07,5.46]
[1757277395200,8.1,203.12,203.07,5.46]
[1757277395392,1.95287965,203.13,203.07,5.46]
[1757277396096,8.1,203.12,203.07,5.46]
[1757277396296,1.95287965,203.13,203.07,5.46]
[1757277396896,8.1,203.12,203.07,5.46]
[1757277397500,1.95287965,203.13,203.05,110.46855827]
[1757277397501,1.95287965,203.13,203.05,112.42143792]
[1757277397895,8.1,203.12,203.05,112.42143792]
[1757277399900,1.95287965,203.11,203.05,1.95287965]
[1757277400101,8.1,203.1,203.05,1.95287965]
[1757277400704,1.95287965,203.11,203.05,1.95287965]
[1757277401103,8.1,203.1,203.04,127.73287965]
[1757277401698,8.1,203.19,203.07,5.46]
[1757277402003,10.05287965,203.15,203.1,1.95287965]
[1757277402199,8.1,203.14,203.1,7.41287965]
[1757277402999,8.1,203.14,203.1,1.95287965]
[1757277403196,8.1,203.18,203.12,1.95287965]
[1757277403806,8.1,203.18,203.13,5.46]
[1757277404209,8.1,203.18,203.12,1.95287965]
[1757277404602,8.1,203.18,203.13,5.46]
[1757277404905,1.95287965,203.19,203.12,1.95287965]
[1757277405108,8.1,203.18,203.12,7.41287965]
[1757277414319,8.1,203.18,203.12,5.46]
[1757277452041,7.62,203.22,203.14,5.46]
[1757277452243,7.62,203.22,203.16,5.46]
[1757277452437,7.62,203.22,203.16,8.515098]
[1757277452636,7.62,203.22,203.17,3.91520105]
[1757277452841,7.62,203.22,203.17,5.46]
[1757277453347,5.53614667,203.24,203.17,5.46]
[1757277453543,13.15614667,203.25,203.17,5.46]
[1757277455547,7.62,203.25,203.17,5.46]
[1757277460146,7.62,203.25,203.19,3.055098]
[1757277460448,8.13,203.27,203.2,5.46]
[1757277465353,8.13,203.25,203.15,3.055098]
[1757277465553,8.13,203.25,203.16,5.46]
[1757277471857,13.66614667,203.25,203.16,5.46]
[1757277475358,8.13,203.23,203.16,5.46]
[1757277476361,5.53614667,203.24,203.16,7.41469305]
[1757277476362,8.13,203.21,203.16,7.41469305]
[1757277477459,1.95469305,203.22,203.16,7.41469305]
[1757277477760,8.13,203.21,203.16,7.41469305]
[1757277478361,1.95469305,203.22,203.16,7.41469305]
[1757277478561,8.13,203.21,203.16,7.41469305]